lending/lending_fUSD_20250121
["ID","MTS","AMOUNT","RATE_DAILY","PERIOD"]
[349788594,1737431439623,-500.0,0.00019178,2]
[349788595,1737431439632,-997.65,0.00019178,2]
[349788596,1737431439643,-500.0,0.00019178,2]
[349788597,1737431439653,-500.0,0.00019178,2]
[349788598,1737431439663,-500.0,0.00019178,2]
[349788599,1737431439672,-500.0,0.00019178,2]
[349788600,1737431439682,-503.86282393,0.00019178,2]
[349788601,1737431439691,-500.0,0.00019178,2]
[349788602,1737431439701,-508.61198572,0.00019178,2]
[349788603,1737431439711,-500.0,0.00019178,2]
[349788604,1737431439720,-500.0,0.00019178,2]
[349788605,1737431439730,-500.0,0.00019178,2]
[349788606,1737431439739,-500.0,0.00019178,2]
[349788607,1737431439749,-500.0,0.00019178,2]
[349788608,1737431439759,-500.0,0.00019178,2]
[349788609,1737431439768,-500.0,0.00019178,2]
[349788610,1737431439778,-500.0,0.00019178,2]
[349788611,1737431439787,-500.0,0.00019178,2]
[349788612,1737431439797,-500.0,0.00019178,2]
[349788614,1737431439806,-840.51,0.00019178,2]
[349788615,1737431439816,-500.0,0.00019178,2]
[349788616,1737431439825,-500.0,0.00019178,2]
[349788617,1737431439835,-504.47582773,0.00019178,2]
[349788618,1737431439844,-500.0,0.00019178,2]
[349788619,1737431439854,-500.0,0.00019178,2]
[349788620,1737431439863,-500.0,0.00019178,2]
[349788621,1737431439872,-500.0,0.00019178,2]
[349788622,1737431439883,-500.0,0.00019178,2]
[349788623,1737431439893,-503.88574726,0.00019178,2]
[349788624,1737431439903,-500.0,0.00019178,2]
[349788626,1737431439912,-556.43508935,0.00019178,2]
[349788627,1737431439921,-500.0,0.00019178,2]
[349788628,1737431439932,-500.0,0.00019178,2]
[349788629,1737431439941,-500.0,0.00019178,2]
[349788630,1737431439951,-500.0,0.00019178,2]
[349788631,1737431439961,-500.0,0.00019178,2]
[349788632,1737431439970,-500.0,0.00019178,2]
[349788633,1737431439979,-500.0,0.00019178,2]
[349788634,1737431439988,-500.0,0.00019178,2]
[349788635,1737431439998,-500.0,0.00019178,2]
[349788636,1737431440008,-500.0,0.00019178,2]
[349788637,1737431440017,-500.0,0.00019178,2]
[349788638,1737431440026,-588.53,0.00019178,2]
[349788639,1737431440035,-500.0,0.00019178,2]
[349788640,1737431440044,-500.0,0.00019178,2]
[349788641,1737431440054,-503.07511198,0.00019178,2]
[349788642,1737431440063,-500.0,0.00019178,2]
[349788643,1737431440072,-500.0,0.00019178,2]
[349788644,1737431440082,-500.0,0.00019178,2]
[349788645,1737431440092,-500.0,0.00019178,2]
[349788646,1737431440101,-500.0,0.00019178,2]
[349788647,1737431440111,-500.0,0.00019178,2]
[349788648,1737431440121,-500.0,0.00019178,2]
[349788649,1737431440130,-500.0,0.00019178,2]
[349788650,1737431440141,-408.59581142,0.00019178,2]
[349788651,1737431440151,-500.0,0.00019178,2]
[349788652,1737431440160,-500.0,0.00019178,2]
[349788653,1737431440170,-500.0,0.00019178,2]
[349788654,1737431440179,-503.06027574,0.00019178,2]
[349788655,1737431440189,-500.0,0.00019178,2]
[349788656,1737431440199,-500.0,0.00019178,2]
[349788657,1737431440210,-500.0,0.00019178,2]
[349788658,1737431440220,-500.0,0.00019178,2]
[349788659,1737431440230,-511.09188187,0.00019178,2]
[349788660,1737431440239,-500.0,0.00019178,2]
[349788661,1737431440249,-504.44514669,0.00019178,2]
[349788662,1737431440259,-500.0,0.00019178,2]
[349788663,1737431440268,-500.0,0.00019178,2]
[349788664,1737431440278,-500.0,0.00019178,2]
[349788665,1737431440287,-503.43955934,0.00019178,2]
[349788666,1737431440297,-500.0,0.00019178,2]
[349788667,1737431440307,-500.0,0.00019178,2]
[349788668,1737431440316,-500.0,0.00019178,2]
[349788669,1737431440326,-500.0,0.00019178,2]
[349788670,1737431440335,-500.0,0.00019178,2]
[349788671,1737431440345,-500.70562375,0.00019178,2]
[349788672,1737431440355,-590.63247403,0.00019178,2]
[349788673,1737431440364,-500.0,0.00019178,2]
[349788674,1737431440375,-500.0,0.00019178,2]
[349788675,1737431440385,-500.0,0.00019178,2]
[349788676,1737431440396,-503.66773774,0.00019178,2]
[349788677,1737431440405,-504.93648925,0.00019178,2]
[349788678,1737431440414,-500.0,0.00019178,2]
[349788679,1737431440424,-500.0,0.00019178,2]
[349788680,1737431440433,-500.0,0.00019178,2]
[349788681,1737431440443,-500.0,0.00019178,2]
[349788682,1737431440454,-500.0,0.00019178,2]
[349788683,1737431440464,-501.58362157,0.00019178,2]
[349788684,1737431440473,-500.0,0.00019178,2]
[349788685,1737431440482,-500.0,0.00019178,2]
[349788686,1737431440492,-500.0,0.00019178,2]
[349788687,1737431440664,-500.0,0.00019178,2]
[349788688,1737431440673,-500.0,0.00019178,2]
[349788689,1737431440683,-500.0,0.00019178,2]
[349788690,1737431440692,-177.73564314,0.00019178,2]
[349788691,1737431440701,-505.6582109,0.00019178,2]
[349788692,1737431440709,-500.0,0.00019178,2]
[349788693,1737431440719,-500.0,0.00019178,2]
[349788694,1737431440728,-500.0,0.00019178,2]
[349788695,1737431440737,-500.0,0.00019178,2]
[349788696,1737431440747,-500.0,0.00019178,2]
[349788697,1737431440756,-500.0,0.00019178,2]
[349788698,1737431440765,-500.0,0.00019178,2]
[349788699,1737431440776,-500.0,0.00019178,2]
[349788700,1737431440785,-501.8113739,0.00019178,2]
[349788701,1737431440794,-500.0,0.00019178,2]
[349788702,1737431440804,-500.0,0.00019178,2]
[349788703,1737431440813,-997.23,0.00019178,2]
[349788704,1737431440823,-500.0,0.00019178,2]
[349788705,1737431440832,-500.0,0.00019178,2]
[349788706,1737431440840,-500.0,0.00019178,2]
[349788707,1737431440850,-500.0,0.00019178,2]
[349788708,1737431440859,-500.0,0.00019178,2]
[349788709,1737431440868,-500.0,0.00019178,2]
[349788710,1737431440877,-500.0,0.00019178,2]
[349788711,1737431440886,-500.0,0.00019178,2]
[349788712,1737431440898,-701.25,0.00019178,2]
[349788713,1737431440907,-500.0,0.00019178,2]
[349788714,1737431440916,-497.0,0.00019178,2]
[349788715,1737431440926,-500.0,0.00019178,2]
[349788716,1737431440937,-507.33704223,0.00019178,2]
[349788717,1737431440947,-500.0,0.00019178,2]
[349788718,1737431440956,-500.0,0.00019178,2]
[349788719,1737431440966,-500.0,0.00019178,2]
[349788720,1737431440975,-1414.07,0.00019178,2]
[349788721,1737431440984,-501.32773288,0.00019178,2]
[349788722,1737431440994,-500.0,0.00019178,2]
[349788723,1737431441003,-500.0,0.00019178,2]
[349788724,1737431441012,-502.24445989,0.00019178,2]
[349788725,1737431441022,-157.934379,0.00019178,2]
[349788726,1737431441032,-500.0,0.00019178,2]
[349788727,1737431441041,-500.0,0.00019178,2]
[349788728,1737431441051,-500.0,0.00019178,2]
[349788729,1737431441063,-500.0,0.00019178,2]
[349788730,1737431441072,-500.0,0.00019178,2]
[349788731,1737431441082,-501.46614122,0.00019178,2]
[349788732,1737431441091,-505.23119255,0.00019178,2]
[349788733,1737431441100,-503.45407593,0.00019178,2]
[349788734,1737431441110,-1957.94,0.00019178,2]
[349788735,1737431441119,-500.0,0.00019178,2]
[349788736,1737431441127,-500.0,0.00019178,2]
[349788737,1737431441138,-500.0,0.00019178,2]
[349788738,1737431441148,-500.0,0.00019178,2]
[349788739,1737431441157,-500.0,0.00019178,2]
[349788740,1737431441166,-500.0,0.00019178,2]
[349788741,1737431441175,-500.0,0.00019178,2]
[349788742,1737431441185,-500.0,0.00019178,2]
[349788743,1737431441194,-500.0,0.00019178,2]
[349788744,1737431441203,-500.0,0.00019178,2]
[349788745,1737431441213,-503.25849361,0.00019178,2]
[349788746,1737431441222,-508.40840811,0.00019178,2]
[349788747,1737431441231,-503.01187031,0.00019178,2]
[349788748,1737431441242,-500.0,0.00019178,2]
[349788749,1737431441253,-500.0,0.00019178,2]
[349788750,1737431441263,-500.0,0.00019178,2]
[349788751,1737431441274,-190.983926,0.00019178,2]
[349788752,1737431441285,-500.0,0.00019178,2]
[349788753,1737431441295,-1072.38,0.00019178,2]
[349788754,1737431441306,-500.0,0.00019178,2]
[349788755,1737431441317,-500.0,0.00019178,2]
[349788756,1737431441328,-505.46348482,0.00019178,2]
[349788757,1737431441340,-502.73607765,0.00019178,2]
[349788758,1737431441350,-1057.57,0.00019178,2]
[349788759,1737431441362,-500.0,0.00019178,2]
[349788760,1737431441373,-500.0,0.00019178,2]
[349788761,1737431441386,-500.0,0.00019178,2]
[349788762,1737431441405,-200.0,0.00019178,2]
[349788763,1737431441418,-508.36678186,0.00019178,2]
[349788764,1737431441431,-1040.36,0.00019178,2]
[349788765,1737431441441,-616.87,0.00019178,2]
[349788766,1737431441451,-500.0,0.00019178,2]
[349788767,1737431441463,-500.0,0.00019178,2]
[349788768,1737431441474,-161.962121,0.00019178,2]
[349788769,1737431441485,-500.0,0.00019178,2]
[349788770,1737431441495,-500.0,0.00019178,2]
[349788771,1737431441506,-500.0,0.00019178,2]
[349788772,1737431441517,-500.0,0.00019178,2]
[349788773,1737431441528,-504.06276886,0.00019178,2]
[349788774,1737431441539,-500.0,0.00019178,2]
[349788775,1737431441549,-500.0,0.00019178,2]
[349788776,1737431441566,-500.0,0.00019178,2]
[349788777,1737431441577,-2085.05,0.00019178,2]
[349788778,1737431441587,-500.0,0.00019178,2]
[349788779,1737431441597,-505.53735642,0.00019178,2]
[349788780,1737431441608,-500.0,0.00019178,2]
[349788781,1737431441619,-1778.99,0.00019178,2]
[349788782,1737431441630,-507.9441282,0.00019178,2]
[349788783,1737431441643,-500.0,0.00019178,2]
[349788784,1737431441655,-634.1,0.00019178,2]
[349788785,1737431441671,-528.85972232,0.00019178,2]
[349788786,1737431441683,-500.0,0.00019178,2]
[349788787,1737431441694,-500.0,0.00019178,2]
[349788788,1737431441705,-500.0,0.00019178,2]
[349788789,1737431441716,-508.56917387,0.00019178,2]
[349788790,1737431441727,-1286.82,0.00019178,2]
[349788791,1737431441738,-504.13589836,0.00019178,2]
[349788792,1737431441750,-500.0,0.00019178,2]
[349788793,1737431441761,-478.60921092,0.00019178,2]
[349788794,1737431441773,-500.0,0.00019178,2]
[349788795,1737431441784,-1351.91,0.00019178,2]
[349788796,1737431441794,-500.0,0.00019178,2]
[349788797,1737431441805,-808.1,0.00019178,2]
[349788798,1737431441815,-511.92438287,0.00019178,2]
[349788799,1737431441826,-510.75093773,0.00019178,2]
[349788800,1737431441836,-507.88912348,0.00019178,2]
[349788801,1737431441845,-500.0,0.00019178,2]
[349788802,1737431441855,-504.13155548,0.00019178,2]
[349788803,1737431441865,-500.0,0.00019178,2]
[349788804,1737431441875,-2057.31,0.00019178,2]
[349788805,1737431441885,-500.0,0.00019178,2]
[349788806,1737431441898,-709.92,0.00019178,2]
[349788807,1737431441907,-508.29912956,0.00019178,2]
[349788808,1737431441917,-500.0,0.00019178,2]
[349788809,1737431441927,-860.56,0.00019178,2]
[349788810,1737431441938,-500.0,0.00019178,2]
[349788811,1737431441948,-503.2975433,0.00019178,2]
[349788812,1737431441957,-500.0,0.00019178,2]
[349788813,1737431441966,-500.0,0.00019178,2]
[349788814,1737431441976,-500.0,0.00019178,2]
[349788815,1737431441985,-500.0,0.00019178,2]
[349788816,1737431441994,-500.0,0.00019178,2]
[349788817,1737431442003,-500.0,0.00019178,2]
[349788818,1737431442012,-500.0,0.00019178,2]
[349788819,1737431442022,-500.0,0.00019178,2]
[349788820,1737431442031,-500.0,0.00019178,2]
[349788821,1737431442039,-509.13468608,0.00019178,2]
[349788822,1737431442048,-577.3,0.00019178,2]
[349788823,1737431442058,-500.84772764,0.00019178,2]
[349788824,1737431442067,-692.77,0.00019178,2]
[349788825,1737431442076,-2706.85,0.00019178,2]
[349788826,1737431442085,-1366.24,0.00019178,2]
[349788827,1737431442095,-500.0,0.00019178,2]
[349788828,1737431442104,-511.40234129,0.00019178,2]
[349788829,1737431442113,-641.22,0.00019178,2]
[349788830,1737431442122,-517.65414529,0.00019178,2]
[349788831,1737431442132,-505.01277674,0.00019178,2]
[349788832,1737431442143,-500.0,0.00019178,2]
[349788833,1737431442152,-507.01216392,0.00019178,2]
[349788834,1737431442162,-500.0,0.00019178,2]
[349788835,1737431442171,-1745.41,0.00019178,2]
[349788836,1737431442180,-500.0,0.00019178,2]
[349788837,1737431442190,-565.86,0.00019178,2]
[349788838,1737431442200,-832.95,0.00019178,2]
[349788839,1737431442210,-500.0,0.00019178,2]
[349788840,1737431442219,-1196.64,0.00019178,2]
[349788841,1737431442228,-2691.18,0.00019178,2]
[349788842,1737431442237,-500.0,0.00019178,2]
[349788843,1737431442247,-190.56487387,0.00019178,2]
[349788844,1737431442256,-925.48,0.00019178,2]
[349788845,1737431442265,-502.95655556,0.00019178,2]
[349788846,1737431442274,-500.0,0.00019178,2]
[349788847,1737431442284,-1247.91,0.00019178,2]
[349788848,1737431442293,-500.0,0.00019178,2]
[349788849,1737431442303,-500.0,0.00019178,2]
[349788850,1737431442312,-500.0,0.00019178,2]
[349788851,1737431442322,-500.0,0.00019178,2]
[349788852,1737431442331,-1943.47,0.00019178,2]
[349788853,1737431442340,-500.0,0.00019178,2]
[349788854,1737431442349,-516.62586081,0.00019178,2]
[349788855,1737431442358,-500.0,0.00019178,2]
[349788856,1737431442367,-1120.67,0.00019178,2]
[349788857,1737431442379,-500.0,0.00019178,2]
[349788858,1737431442390,-500.0,0.00019178,2]
[349788859,1737431442400,-886.99,0.00019178,2]
[349788860,1737431442409,-500.0,0.00019178,2]
[349788861,1737431442418,-500.0,0.00019178,2]
[349788862,1737431442427,-2125.42,0.00019178,2]
[349788863,1737431442441,-500.0,0.00019178,2]
[349788864,1737431442451,-367.81054071,0.00019178,2]
[349788865,1737431442461,-500.0,0.00019178,2]
[349788866,1737431442471,-1434.09,0.00019178,2]
[349788867,1737431442480,-500.0,0.00019178,2]
[349788868,1737431442490,-502.97656721,0.00019178,2]
[349788869,1737431442499,-1480.4,0.00019178,2]
[349788870,1737431442509,-488.3677393,0.00019178,2]
[349788871,1737431442518,-500.0,0.00019178,2]
[349788872,1737431442528,-500.0,0.00019178,2]
[349788873,1737431442537,-511.03,0.00019178,2]
[349788874,1737431442547,-511.88984396,0.00019178,2]
[349788875,1737431442557,-873.5,0.00019178,2]
[349788876,1737431442567,-500.0,0.00019178,2]
[349788877,1737431442577,-500.0,0.00019178,2]
[349788878,1737431442587,-500.0,0.00019178,2]
[349788879,1737431442596,-500.0,0.00019178,2]
[349788880,1737431442607,-500.0,0.00019178,2]
[349788881,1737431442616,-945.49,0.00019178,2]
[349788882,1737431442626,-500.0,0.00019178,2]
[349788883,1737431442635,-500.0,0.00019178,2]
[349788884,1737431442649,-511.52331788,0.00019178,2]
[349788885,1737431442659,-503.16952153,0.00019178,2]
[349788886,1737431442669,-500.0,0.00019178,2]
[349788887,1737431442679,-500.0,0.00019178,2]
[349788888,1737431442689,-503.83964842,0.00019178,2]
[349788889,1737431442699,-509.1,0.00019178,2]
[349788891,1737431442709,-500.0,0.00019178,2]
[349788892,1737431442719,-505.27091836,0.00019178,2]
[349788893,1737431442728,-1020.26,0.00019178,2]
[349788894,1737431442738,-1179.69,0.00019178,2]
[349788895,1737431442747,-509.57782686,0.00019178,2]
[349788896,1737431442758,-500.0,0.00019178,2]
[349788897,1737431442768,-1380.46,0.00019178,2]
[349788898,1737431442778,-505.4493275,0.00019178,2]
[349788899,1737431442788,-500.0,0.00019178,2]
[349788900,1737431442798,-559.51985721,0.00019178,2]
[349788901,1737431442807,-618.98,0.00019178,2]
[349788902,1737431442818,-500.0,0.00019178,2]
[349788903,1737431442827,-500.0,0.00019178,2]
[349788904,1737431442837,-500.0,0.00019178,2]
[349788905,1737431442847,-673.28,0.00019178,2]
[349788906,1737431442856,-500.0,0.00019178,2]
[349788907,1737431442866,-500.0,0.00019178,2]
[349788908,1737431442875,-2381.85,0.00019178,2]
[349788909,1737431442885,-500.0,0.00019178,2]
[349788911,1737431442897,-1438.7,0.00019178,2]
[349788913,1737431442907,-500.0,0.00019178,2]
[349788914,1737431442916,-419.03340695,0.00019178,2]
[349788915,1737431442925,-500.0,0.00019178,2]
[349788916,1737431442936,-500.0,0.00019178,2]
[349788917,1737431442946,-546.12,0.00019178,2]
[349788918,1737431442955,-1308.98,0.00019178,2]
[349788919,1737431442964,-500.0,0.00019178,2]
[349788920,1737431442974,-1491.71,0.00019178,2]
[349788921,1737431442984,-573.04,0.00019178,2]
[349788922,1737431442993,-500.0,0.00019178,2]
[349788923,1737431443004,-507.25012307,0.00019178,2]
[349788924,1737431443014,-894.47,0.00019178,2]
[349788925,1737431443023,-500.0,0.00019178,2]
[349788926,1737431443033,-628.18,0.00019178,2]
[349788927,1737431443043,-500.0,0.00019178,2]
[349788928,1737431443052,-504.35969917,0.00019178,2]
[349788929,1737431443062,-500.0,0.00019178,2]
[349788930,1737431443071,-500.0,0.00019178,2]
[349788931,1737431443080,-1534.21,0.00019178,2]
[349788932,1737431443090,-1230.77,0.00019178,2]
[349788933,1737431443100,-321.87749717,0.00019178,2]
[349788934,1737431443109,-518.68159334,0.00019178,2]
[349788935,1737431443119,-500.0,0.00019178,2]
[349788936,1737431443128,-500.0,0.00019178,2]
[349788937,1737431443138,-681.3,0.00019178,2]
[349788938,1737431443149,-500.0,0.00019178,2]
[349788939,1737431443158,-500.0,0.00019178,2]
[349788940,1737431443167,-500.0,0.00019178,2]
[349788941,1737431443176,-500.0,0.00019178,2]
[349788942,1737431443308,-500.0,0.00019178,2]
[349788943,1737431443335,-500.0,0.00019178,2]
[349788944,1737431443345,-700.3,0.00019178,2]
[349788945,1737431443354,-500.0,0.00019178,2]
[349788946,1737431443363,-500.0,0.00019178,2]
[349788947,1737431443372,-392.14927782,0.00019178,2]
[349788948,1737431443381,-1332.19,0.00019178,2]
[349788949,1737431443391,-461.71592847,0.00019178,2]
[349788950,1737431443407,-500.0,0.00019178,2]
[349788952,1737431443416,-907.81,0.00019178,2]
[349788953,1737431443424,-500.0,0.00019178,2]
[349788954,1737431443433,-506.55677323,0.00019178,2]
[349788955,1737431443443,-500.0,0.00019178,2]
[349788956,1737431443452,-500.0,0.00019178,2]
[349788957,1737431443461,-502.83468122,0.00019178,2]
[349788958,1737431443471,-503.24848872,0.00019178,2]
[349788959,1737431443480,-404.33583944,0.00019178,2]
[349788960,1737431443489,-502.20512525,0.00019178,2]
[349788961,1737431443498,-151.88,0.00019187,2]
[349788962,1737431443507,-1694.3305,0.00019352,2]
[349788963,1737431443517,-500.0,0.00019391,2]
[349788964,1737431443526,-500.0,0.00019391,2]
[349788965,1737431443535,-500.0,0.00019391,2]
[349788966,1737431443544,-500.0,0.00019391,2]
[349788967,1737431443555,-500.0,0.00019391,2]
[349788968,1737431443564,-500.0,0.00019391,2]
[349788969,1737431443574,-500.0,0.00019391,2]
[349788970,1737431443583,-500.0,0.00019391,2]
[349788971,1737431443592,-500.0,0.00019391,2]
[349788972,1737431443601,-500.0,0.00019391,2]
[349788973,1737431443610,-984.38,0.00019391,2]
[349788974,1737431443620,-500.0,0.00019391,2]
[349788975,1737431443629,-500.0,0.00019391,2]
[349788976,1737431443638,-500.0,0.00019391,2]
[349788977,1737431443654,-500.0,0.00019391,2]
[349788978,1737431443664,-500.0,0.00019391,2]
[349788980,1737431443673,-500.0,0.00019391,2]
[349788981,1737431443681,-500.0,0.00019391,2]
[349788982,1737431443691,-500.0,0.00019391,2]
[349788983,1737431443700,-500.0,0.00019391,2]
[349788984,1737431443709,-500.0,0.00019391,2]
[349788985,1737431443718,-500.0,0.00019391,2]
[349788986,1737431443727,-500.0,0.00019391,2]
[349788987,1737431443736,-500.0,0.00019391,2]
[349788988,1737431443745,-500.0,0.00019391,2]
[349788989,1737431443754,-500.0,0.00019391,2]
[349788990,1737431443763,-500.0,0.00019391,2]
[349788991,1737431443773,-500.0,0.00019391,2]
[349788992,1737431443782,-500.0,0.00019391,2]
[349788993,1737431443791,-500.0,0.00019391,2]
[349788994,1737431443800,-500.0,0.00019391,2]
[349788995,1737431443809,-500.0,0.00019391,2]
[349788996,1737431443819,-500.0,0.00019391,2]
[349788997,1737431443828,-500.0,0.00019391,2]
[349788998,1737431443837,-500.0,0.00019391,2]
[349788999,1737431443846,-500.0,0.00019391,2]
[349789000,1737431443855,-500.0,0.00019391,2]
[349789001,1737431443864,-500.0,0.00019391,2]
[349789002,1737431443874,-537.95524497,0.00019391,2]
[349789003,1737431443883,-158.1682357,0.00019391,2]
[349789004,1737431443895,-500.0,0.00019391,2]
[349789005,1737431443905,-500.0,0.00019391,2]
[349789006,1737431443914,-500.0,0.00019391,2]
[349789007,1737431443924,-500.0,0.00019391,2]
[349789008,1737431443935,-500.0,0.00019391,2]
[349789009,1737431443946,-623.46,0.00019391,2]
[349789010,1737431443955,-500.0,0.00019391,2]
[349789011,1737431443965,-500.0,0.00019391,2]
[349789012,1737431443974,-570.93,0.00019391,2]
[349789013,1737431443984,-586.4,0.00019391,2]
[349789014,1737431443993,-500.0,0.00019391,2]
[349789015,1737431444002,-540.07,0.00019391,2]
[349789016,1737431444011,-500.0,0.00019391,2]
[349789017,1737431444021,-500.0,0.00019391,2]
[349789018,1737431444030,-500.0,0.00019391,2]
[349789019,1737431444039,-500.0,0.00019391,2]
[349789020,1737431444048,-500.0,0.00019391,2]
[349789022,1737431444057,-572.74,0.00019391,2]
[349789025,1737431444067,-503.93290884,0.00019391,2]
[349789026,1737431444076,-500.0,0.00019391,2]
[349789027,1737431444085,-553.16424168,0.00019391,2]
[349789028,1737431444094,-741.83,0.00019391,2]
[349789029,1737431444103,-728.53,0.00019391,2]
[349789030,1737431444114,-728.53,0.00019391,2]
[349789031,1737431444124,-500.0,0.00019391,2]
[349789032,1737431444135,-535.34,0.00019391,2]
[349789033,1737431444147,-500.0,0.00019391,2]
[349789034,1737431444157,-500.0,0.00019391,2]
[349789035,1737431444167,-500.0,0.00019391,2]
[349789036,1737431444177,-835.45,0.00019391,2]
[349789037,1737431444186,-500.0,0.00019391,2]
[349789038,1737431444195,-500.0,0.00019391,2]
[349789039,1737431444205,-500.0,0.00019391,2]
[349789040,1737431444214,-185.93514779,0.00019391,2]
[349789041,1737431444223,-503.48,0.00019391,2]
[349789042,1737431444233,-2737.18,0.00019391,2]
[349789043,1737431444243,-500.0,0.00019391,2]
[349789044,1737431444252,-500.0,0.00019391,2]
[349789045,1737431444261,-500.0,0.00019391,2]
[349789046,1737431444271,-500.0,0.00019391,2]
[349789047,1737431444280,-500.0,0.00019391,2]
[349789048,1737431444289,-515.52149712,0.00019391,2]
[349789049,1737431444298,-500.0,0.00019391,2]
[349789050,1737431444307,-500.0,0.00019391,2]
[349789051,1737431444316,-500.0,0.00019391,2]
[349789052,1737431444325,-500.0,0.00019391,2]
[349789053,1737431444334,-3365.89,0.00019391,2]
[349789054,1737431444343,-500.0,0.00019391,2]
[349789055,1737431444352,-500.0,0.00019391,2]
[349789056,1737431444362,-500.0,0.00019391,2]
[349789057,1737431444372,-500.0,0.00019391,2]
[349789058,1737431444385,-500.0,0.00019391,2]
[349789059,1737431444396,-500.0,0.00019391,2]
[349789060,1737431444406,-500.0,0.00019391,2]
[349789061,1737431444415,-500.0,0.00019391,2]
[349789062,1737431444425,-238.74954698,0.00019391,2]
[349789063,1737431444435,-500.0,0.00019391,2]
[349789064,1737431444444,-501.27,0.00019391,2]
[349789065,1737431444453,-536.64715515,0.00019391,2]
[349789066,1737431444463,-500.0,0.00019391,2]
[349789067,1737431444472,-500.0,0.00019391,2]
[349789068,1737431444480,-500.0,0.00019391,2]
[349789069,1737431444489,-500.0,0.00019391,2]
[349789070,1737431444498,-190.54269516,0.00019391,2]
[349789071,1737431444507,-500.0,0.00019391,2]
[349789072,1737431444516,-1871.28,0.00019391,2]
[349789073,1737431444527,-500.0,0.00019391,2]
[349789074,1737431444536,-500.0,0.00019391,2]
[349789075,1737431444545,-500.0,0.00019391,2]
[349789076,1737431444554,-500.0,0.00019391,2]
[349789077,1737431444563,-500.0,0.00019391,2]
[349789078,1737431444573,-500.0,0.00019391,2]
[349789079,1737431444582,-500.0,0.00019391,2]
[349789080,1737431444591,-1519.97,0.00019391,2]
[349789081,1737431444600,-500.0,0.00019391,2]
[349789082,1737431444609,-21948.61484313,0.00019392,2]
[349789083,1737431444618,-15097.33547228,0.00019392,2]
[349789084,1737431444628,-171.77,0.0001942,2]
[349789085,1737431444637,-500.0,0.00019452,2]
[349789086,1737431444649,-500.0,0.00019452,2]
[349789087,1737431444658,-500.0,0.00019452,2]
[349789088,1737431444668,-500.0,0.00019452,2]
[349789089,1737431444677,-500.0,0.00019452,2]
[349789090,1737431444687,-500.0,0.00019452,2]
[349789091,1737431444695,-500.0,0.00019452,2]
[349789092,1737431444705,-500.0,0.00019452,2]
[349789093,1737431444714,-500.0,0.00019452,2]
[349789094,1737431444723,-492.19180061,0.00019452,2]
[349789095,1737431444732,-500.0,0.00019452,2]
[349789096,1737431444742,-500.0,0.00019452,2]
[349789097,1737431444751,-500.0,0.00019452,2]
[349789098,1737431444760,-500.0,0.00019452,2]
[349789099,1737431444768,-500.0,0.00019452,2]
[349789100,1737431444778,-500.0,0.00019452,2]
[349789101,1737431444787,-500.0,0.00019452,2]
[349789102,1737431444796,-500.0,0.00019452,2]
[349789103,1737431444806,-500.0,0.00019452,2]